{"text_format":"1","workbook":"xlsx","n_sheets":2,"sheets":["他薦フォーム_2026年度","Excel_応募フォーム_old"],"not_rendered":{"charts":0,"images":0,"macros":1,"external_links":0,"defined_names":0,"comments":0,"pivot_tables":0},"unopened":[],"bounds":{"document_bytes":16777216,"sheet_cells":100000,"rows_first":2000,"rows_last":500,"rows_between":2000,"halvings":0,"cell_chars":16384,"cell_head_chars":4096},"cells_cut":0,"cells_raw":0,"read":"whole","date_system":"1900"}

{"sheet":"他薦フォーム_2026年度","index":0,"n_rows":53,"n_cols":14,"rows_kept":53,"cut":false,"hidden":false,"merged":[[3,0,3,6],[1,0,1,5]]}
["2026年度 安藤財団 ヤングケアラー支援団体表彰事業 他薦フォーム",null,null,null,null,null,null,null,"→フォーム設計用なので、応募フォーマットの内容が確定次第、非表示設定します"]
["今回、公益財団法人安藤スポーツ・食文化振興財団は、ヤングケアラー支援団体表彰事業を実施いたします。\nヤングケアラー支援に尽力する団体を表彰し、優良な取り組みを社会に広く周知することで、ヤングケアラー支援のさらなる推進に寄与することを目的としております。\n本フォームは、第三者の立場の方がヤングケアラー支援に尽力する団体を他薦するものです。\n以下対象となる取り組みに当てはまる団体をぜひご推薦ください。"]
["【記入方法】"]
["対象: 地方自治体による市区町村の推薦、または支援機関による民間団体の推薦。\n締切: 2026年7月31日（金）23:59 弊社受信分まで\n\n▼対象となる取り組みは以下の通りです。各項目の視点に沿って推薦理由をご記入いただけますと幸いです。\n●新規性：これまでに見られない、新しくユニークな取り組みである\n●有効性：ヤングケアラーの生活を改善し、未来を切り開く取り組みである\n●社会性：支援地域の現状を踏まえ、多様な連携や将来の展望が明確な取り組みである\n●波及性：他の団体への波及が大きく、参考となる取り組みである\n●継続性：一過性でなく、継続的に実施可能な取り組みである\n●個人への配慮：個人情報の保護やヤングケアラーの心情等に配慮ができている取り組みである\n\n▼注意事項\n推薦いただく団体様に、あらかじめ本表彰事業への推薦および弊社・事務局（一般社団法人ヤングケアラー協会）より推薦いただいた取り組みについて詳しくお伺いするために\nご連絡させていただく旨をご了承を得てからご応募いただきますようお願い申し上げます。"]
["セクション","NO","項目名","補足説明","必須","回答欄①","回答欄②",null,null,null,"No1","No2","No12","NO4,13"]
["1. 事前了承の可否",1,"推薦する自治体または団体への事前了承の確認","・ご推薦いただいた取り組みについて詳しくお伺いするために、後日、弊社・事務局（一般社団法人ヤングケアラー協会）より、推薦先の自治体または団体様へ直接ご連絡をさせていただきます。\n誠に恐れ入りますが、あらかじめ推薦先団体様へ本表彰事業への推薦および弊社・事務局からの連絡について、ご了承を得ていただきますようお願いいたします。","必須","プルダウンから選択してください",null,null,null,null,"プルダウンから選択してください","プルダウンから選択してください","プルダウンから選択してください","プルダウンから選択してください"]
["2. フォーム入力者情報",{"$f":"B6+1","v":2},"入力者の所属団体名",null,"必須",null,null,null,null,null,"推薦先の自治体または団体へ事前の了承を得ています","はい（委託事業です）→「地方自治体部門」の応募フォームを使用してご応募ください。","本フォームと同時に提出する","1.北海道"]
[null,{"$f":"B7+1","v":3},"所属団体の所在地","・都道府県を選択してください","必須","プルダウンから選択してください",null,null,null,null,"推薦先の自治体または団体へ事前の了承を得ていません→推薦先の団体様に事前の了承を得たうえで、再度応募ください。","いいえ（委託事業ではありません）","推薦書を後日メールで提出する","2.青森県"]
[null,4,"所属団体の所在地（都道府県以降）","・都道府県以降を記載ください","必須",null,null,null,null,null,null,null,"推薦書はありません","3.岩手県"]
[null,5,"入力者名","・姓と名の間に半角スペースを入れて記入ください","必須",null,null,null,null,null,null,null,null,"4.宮城県"]
[null,6,"入力者名（フリガナ）","・姓と名の間に半角スペースを入れて記入ください","必須",null,null,null,null,null,null,null,null,"5.秋田県"]
[null,7,"入力者連絡先（メール）","・日常的にご利用されている、確実にメールを受信できるアドレスをご入力ください。\n・携帯キャリアメールをご利用の場合、当方からのメールが迷惑メールフォルダに振り分けられたり、受信拒否されてしまう場合がございます。事前に「@youngcarerjapan.com」からのメールを受信できるよう設定をお願いいたします。","必須",null,null,null,null,null,null,null,null,"6.山形県"]
[null,8,"（確認用）入力者連絡先メールアドレスの再入力",null,"必須",null,null,null,null,null,null,null,null,"7.福島県"]
[null,9,"入力者連絡先（電話）","・ハイフンを含めず、入力してください。","必須",null,null,null,{"$f":"COUNTIF(I16:L16,\"TRUE\")","v":0},null,null,null,null,"8.茨城県"]
[null,10,"本募集に関する情報の入手先","・どちらで本募集をお知りになりましたか。各種案内や、特定のWEBサイト名、ご紹介などお選びください。\n・「その他」を選択された方は、回答欄②に具体的にご記載ください。","必須",null,null,null,"①子ども家庭庁からの案内","②公益財団法人 安藤スポーツ･食文化振興財団のホームページ","③一般社団法人ヤングケアラー協会からの案内","④その他（その他を選択された方は詳細を右の回答欄②に記載ください）",null,"9.栃木県"]
["3. 被推薦団体の情報の入力",{"$f":"B15+1","v":11},"被推薦団体名（または自治体名）",null,"必須",null,null,null,false,false,false,false,null,"10.群馬県"]
[null,{"$f":"B16+1","v":12},"被推薦団体（または自治体）の所在地","・都道府県を選択してください","必須","プルダウンから選択してください",null,null,null,null,null,null,null,"11.埼玉県"]
[null,{"$f":"B17+1","v":13},"被推薦団体（または自治体）の所在地（都道府県以降）","・都道府県以降を記載ください","必須",null,null,null,null,null,null,null,null,"12.千葉県"]
[null,14,"被推薦団体（または自治体）の担当者","・姓と名の間に半角スペースを入れて記入ください","必須",null,null,null,null,null,null,null,null,"13.東京都"]
[null,15,"被推薦団体（または自治体）の担当者（フリガナ）","・姓と名の間に半角スペースを入れて記入ください","必須",null,null,null,null,null,null,null,null,"14.神奈川県"]
[null,16,"被推薦団体（または自治体）連絡先（メール）","・日常的にご利用されている、確実にメールを受信できるアドレスをご入力ください。\n・携帯キャリアメールをご利用の場合、当方からのメールが迷惑メールフォルダに振り分けられたり、受信拒否されてしまう場合がございます。事前に「@youngcarerjapan.com」からのメールを受信できるよう設定いただきたい旨を、被推薦団体へお伝えください。","必須",null,null,null,null,null,null,null,null,"15.新潟県"]
[null,17,"（確認用）被推薦団体（または自治体）連絡先メールアドレスの再入力",null,"必須",null,null,null,null,null,null,null,null,"16.富山県"]
[null,18,"被推薦団体（または自治体）連絡先（電話）","・ハイフンを含めず、入力してください。","必須",null,null,null,null,null,null,null,null,"17.石川県"]
[null,19,"推薦理由","・以下の視点に沿って推薦理由をご記入いただけますと幸いです。 \n独自の視点： 既存の支援にはない、その団体ならではの工夫 \n多機関連携： 地域において他の機関（学校・行政・医療等）と協力している様子 \n支援の質： 人数などの規模以上に、本人や家族の心情を大切にしている点","必須",null,null,null,null,null,null,null,null,"18.福井県"]
[null,null,null,null,null,null,null,null,null,null,null,null,null,"19.山梨県"]
[null,null,null,null,null,null,null,null,null,null,null,null,null,"20.長野県"]
[null,null,null,null,null,null,null,null,null,null,null,null,null,"21.岐阜県"]
[null,null,null,null,null,null,null,null,null,null,null,null,null,"22.静岡県"]
[null,null,null,null,null,null,null,null,null,null,null,null,null,"23.愛知県"]
[null,null,null,null,null,null,null,null,null,null,null,null,null,"24.三重県"]
[null,null,null,null,null,null,null,null,null,null,null,null,null,"25.滋賀県"]
[null,null,null,null,null,null,null,null,null,null,null,null,null,"26.京都府"]
[null,null,null,null,null,null,null,null,null,null,null,null,null,"27.大阪府"]
[null,null,null,null,null,null,null,null,null,null,null,null,null,"28.兵庫県"]
[null,null,null,null,null,null,null,null,null,null,null,null,null,"29.奈良県"]
[null,null,null,null,null,null,null,null,null,null,null,null,null,"30.和歌山県"]
[null,null,null,null,null,null,null,null,null,null,null,null,null,"31.鳥取県"]
[null,null,null,null,null,null,null,null,null,null,null,null,null,"32.島根県"]
[null,null,null,null,null,null,null,null,null,null,null,null,null,"33.岡山県"]
[null,null,null,null,null,null,null,null,null,null,null,null,null,"34.広島県"]
[null,null,null,null,null,null,null,null,null,null,null,null,null,"35.山口県"]
[null,null,null,null,null,null,null,null,null,null,null,null,null,"36.徳島県"]
[null,null,null,null,null,null,null,null,null,null,null,null,null,"37.香川県"]
[null,null,null,null,null,null,null,null,null,null,null,null,null,"38.愛媛県"]
[null,null,null,null,null,null,null,null,null,null,null,null,null,"39.高知県"]
[null,null,null,null,null,null,null,null,null,null,null,null,null,"40.福岡県"]
[null,null,null,null,null,null,null,null,null,null,null,null,null,"41.佐賀県"]
[null,null,null,null,null,null,null,null,null,null,null,null,null,"42.長崎県"]
[null,null,null,null,null,null,null,null,null,null,null,null,null,"43.熊本県"]
[null,null,null,null,null,null,null,null,null,null,null,null,null,"44.大分県"]
[null,null,null,null,null,null,null,null,null,null,null,null,null,"45.宮崎県"]
[null,null,null,null,null,null,null,null,null,null,null,null,null,"46.鹿児島県"]
[null,null,null,null,null,null,null,null,null,null,null,null,null,"47.沖縄県"]

{"sheet":"Excel_応募フォーム_old","index":1,"n_rows":51,"n_cols":17,"rows_kept":51,"cut":false,"hidden":true,"merged":[[2,0,2,6]]}
["2026年度 安藤財団 ヤングケアラー支援表彰事業 応募フォーム（仮）"]
["【記入方法】"]
["応募方法の選択: 専用フォームへの直接入力、応募フォーム（Excel）をメールに添付\nPR動画や追加資料について:PR動画ファイルやURL、SNSアカウント、活動内容のわかる資料などを応募フォーム（Excel）と併せてご提出いただくことができます（任意）\n締切: 2026年◯月◯日（◯）23:59 送信分まで（仮）"]
["セクション","NO","項目名","補足説明","必須","回答欄①","回答欄②",null,null,null,null,"No7","No8","No9","No10","No11","NO3.17"]
["2. 応募部門",{"$f":"B16+1","v":11},"応募部門","・「地方自治体部門」または「ヤングケアラー支援団体部門」を選択してください 。","必須","プルダウンから選択してください",null,null,null,null,null,null,null,null,null,null,"10.群馬県"]
["3.委託事業の確認（ヤングケアラー支援団体部門の場合）",{"$f":"B5+1","v":12},"委託事業の確認","・「はい（委託事業）」または「いいえ」を選択してください。","No8.「ヤングケアラー支援団体部門」に応募する場合は必須","プルダウンから選択してください",null,null,null,null,null,null,null,null,null,null,"11.埼玉県"]
["1. フォーム入力者情報",1,"入力者の所属団体名",null,"必須",null,null,null,null,null,null,"プルダウンから選択してください","プルダウンから選択してください","プルダウンから選択してください","プルダウンから選択してください","プルダウンから選択してください","プルダウンから選択してください"]
[null,{"$f":"B7+1","v":2},"所属団体の代表者 氏名",null,"必須",null,null,null,null,null,null,"子ども家庭庁からの案内","地方自治体部門","はい（委託事業です）","自薦（自治体からの推薦有）","本フォームと同時に提出する","1.北海道"]
[null,{"$f":"B8+1","v":3},"所属団体の所在地","・都道府県を選択してください","必須","プルダウンから選択してください",null,null,null,null,null,"公益財団法人 安藤スポーツ･食文化振興財団のホームページ","ヤングケアラー支援団体部門","いいえ（委託事業ではありません）→応募部門を「地方自治体部門」を選択してください。","自薦（自治体からの推薦無）","後日提出する","2.青森県"]
[null,{"$f":"B9+1","v":4},"所属団体の所在地（都道府県以降）","・都道府県以降を記載ください","必須",null,null,null,null,null,null,"一般社団法人ヤングケアラー協会からの案内",null,null,"推薦",null,"3.岩手県"]
[null,5,"入力者名","・姓と名の間に全角スペースを入れて記入ください","必須",null,null,null,null,null,null,"その他（その他を選択された方は詳細を右の回答欄②に記載ください）",null,null,null,null,"4.宮城県"]
[null,{"$f":"B11+1","v":6},"入力者名（フリガナ）","・姓と名の間に全角スペースを入れて記入ください","必須",null,null,null,null,null,null,null,null,null,null,null,"5.秋田県"]
[null,{"$f":"B12+1","v":7},"入力者連絡先（メール）","・日常的にご利用されている、確実にメールを受信できるアドレスをご入力ください。\n・携帯キャリアメールをご利用の場合、当方からのメールが迷惑メールフォルダに振り分けられたり、受信拒否されてしまう場合がございます。事前に「@youngcarerjapan.com」からのメールを受信できるよう設定をお願いいたします。","必須",null,null,null,null,null,null,null,null,null,null,null,"6.山形県"]
[null,{"$f":"B13+1","v":8},"（確認用）入力者連絡先メールアドレスの再入力",null,"必須",null,null,null,null,null,null,null,null,null,null,null,"7.福島県"]
[null,{"$f":"B14+1","v":9},"入力者連絡先（電話）",null,"必須",null,null,null,null,null,null,null,null,null,null,null,"8.茨城県"]
[null,10,"本募集に関する情報の入手先","・どちらで本募集をお知りになりましたか。各種案内や、特定のWEBサイト名、ご紹介などお選びください。\n・「その他」を選択された方は、回答欄②に具体的にご記載ください。","必須","プルダウンから選択してください",null,null,null,null,null,null,null,null,null,null,"9.栃木県"]
["5.自薦（自治体からの推薦有）の場合",{"$f":"#REF!+1","v":{"$error":"#REF!"}},"自治体からの推薦書の提出可否","・「本フォームと同時に提出する」または「後日提出する」を選択してください。\n・後日提出する場合は、改めてメールでご提出ください。","No10.「自薦（自治体からの推薦有）」の場合は必須","プルダウンから選択してください",null,null,null,null,null,null,null,null,null,null,"13.東京都"]
[null,{"$f":"B17+1","v":{"$error":"#REF!"}},"自治体からの推薦書を添付してください","・メールにてご提出ください。",null,"（本項目への入力は不要でございます）",null,null,null,null,null,null,null,null,null,null,"14.神奈川県"]
["6.推薦の場合",{"$f":"B18+1","v":{"$error":"#REF!"}},"被推薦団体名（または自治体名）","・推薦したい団体または自治体の名称をご記入ください。","No10.応募種別が「推薦」の場合は必須",null,null,null,null,null,null,null,null,null,null,null,"15.新潟県"]
[null,{"$error":"#REF!"},"被推薦団体（または自治体）の所在地","・都道府県を選択してください","No10.応募種別が「推薦」の場合は必須","プルダウンから選択してください",null,null,null,null,null,null,null,null,null,null,"16.富山県"]
[null,{"$f":"B20+1","v":{"$error":"#REF!"}},"被推薦団体（または自治体）の所在地（都道府県以降）","・都道府県以降を記載ください","No10.応募種別が「推薦」の場合は必須",null,null,null,null,null,null,null,null,null,null,null,"17.石川県"]
[null,{"$f":"B21+1","v":{"$error":"#REF!"}},"被推薦団体（または自治体）の担当者","・わかる範囲でご記入ください。\n・姓と名の間に全角スペースを入れて記入ください","No10.応募種別が「推薦」の場合は必須",null,null,null,null,null,null,null,null,null,null,null,"18.福井県"]
[null,{"$f":"B22+1","v":{"$error":"#REF!"}},"被推薦団体（または自治体）の担当者（フリガナ）","・姓と名の間に全角スペースを入れて記入ください","No10.応募種別が「推薦」の場合は必須",null,null,null,null,null,null,null,null,null,null,null,"19.山梨県"]
[null,{"$f":"B23+1","v":{"$error":"#REF!"}},"被推薦団体（または自治体）の連絡先（メール）","・日常的にご利用されている、確実にメールを受信できるアドレスをご入力ください。\n・携帯キャリアメールをご利用の場合、当方からのメールが迷惑メールフォルダに振り分けられたり、受信拒否されてしまう場合がございます。事前に「@youngcarerjapan.com」からのメールを受信できるよう設定をお願いいたします。","No10.応募種別が「推薦」の場合は必須",null,null,null,null,null,null,null,null,null,null,null,"20.長野県"]
[null,{"$error":"#REF!"},"被推薦団体（または自治体）の連絡先（電話）",null,"No10.応募種別が「推薦」の場合は必須",null,null,null,null,null,null,null,null,null,null,null,"21.岐阜県"]
[null,{"$error":"#REF!"},"推薦書の添付","・推薦書のメールにてご提出ください。","No10.応募種別が「推薦」の場合は必須","（本項目への入力は不要でございます）",null,null,null,null,null,null,null,null,null,null,"22.静岡県"]
["7. 活動内容・評価項目",{"$error":"#REF!"},"取り組みの名称","・申請する活動の名称を記入してください。特定の名称がない場合は、活動内容がわかる名称を任意で設定してください（例：〇〇市ヤングケアラー学習支援プロジェクト等）","必須",null,null,null,null,null,null,null,null,null,null,null,"23.愛知県"]
[null,{"$error":"#REF!"},"2025年度の活動内容と独自の工夫（300字程度）","・2025年度に実施した活動の概要を記入してください 。その際、既存の支援にはない独自の視点や、対象者に届けるための工夫（例：相談しやすくするための工夫、食事提供を通じた接点づくりなど）を具体的に含めてください。\n・300字程度で具体的に記載してください。","必須",null,null,{"$f":"\"入力文字数 \"&LEN(F28)&\"文字 / \"&300&\"文字\"","v":"入力文字数 0文字 / 300文字"},null,null,null,null,null,null,null,null,"24.三重県"]
[null,{"$error":"#REF!"},"この活動によって、ヤングケアラー本人やその家族にどのような「具体的な変化」がありましたか？（300字程度）","・支援人数（規模）よりも、一人ひとりに向き合った「質の深さ」を重視します 。孤独感の解消、自分の時間の確保、精神的なゆとりなど、支援を通じて本人の生活がどう改善されたかを教えてください。\n・300字程度で具体的に記載してください。","必須",null,null,"入力文字数 0文字 / 300文字",null,null,null,null,null,null,null,null,"25.滋賀県"]
[null,{"$error":"#REF!"},"ヤングケアラーを「孤立させない」ために、地域の他機関・他部署とどのように連携していますか？（300字程度）","・ヤングケアラー本人だけでなく、その家族全体の課題（家事、介護、経済的困窮など）を解決するために連携している外部機関（学校、行政、民間団体、企業など）を挙げてください 。役割分担や、連携によって解決できた具体的な事例があれば記載してください。\n・300字程度で具体的に記載してください。","必須",null,null,"入力文字数 0文字 / 300文字",null,null,null,null,null,null,null,null,"26.京都府"]
[null,{"$error":"#REF!"},"今後の活動を継続するための工夫と、このモデルが他の地域や団体でも「参考にできるポイント」があれば教えてください。（300字程度）","・活動を続けるための工夫や、他の地域・団体でも参考にできるポイントがあれば記入してください 。\n・300字程度で具体的に記載してください。","必須",null,null,"入力文字数 0文字 / 300文字",null,null,null,null,null,null,null,null,"27.大阪府"]
[null,{"$error":"#REF!"},"ヤングケアラー本人や家族の心情、プライバシーに対して、活動の中で特に配慮していることは何ですか？（300字程度）","・学校・地域で本人が特定されないための具体的な配慮やヤングケアラー本人やその家族が感じる「支援を受けることへの罪悪感」への配慮など、工夫されている点を具体的に教えてください。\n・300字程度で具体的に記載してください。","必須",null,null,"入力文字数 0文字 / 300文字",null,null,null,null,null,null,null,null,"28.兵庫県"]
["8. 追加資料・動画",{"$error":"#REF!"},"取り組みPR動画（ファイル添付）（任意）","・活動の様子もしくは活動内容を説明した動画をご提出ください。","任意","（本項目への入力は不要でございます）",null,null,null,null,null,null,null,null,null,null,"29.奈良県"]
[null,{"$error":"#REF!"},"取り組みPR動画（URL記載）（任意）","・活動の様子もしくは活動内容を説明した動画のURLを記載してください。","任意",null,null,null,null,null,null,null,null,null,null,null,"30.和歌山県"]
[null,{"$error":"#REF!"},"SNSアカウントがあれば、SNSアカウント情報（任意）","・SNSアカウント名とアカウントIDを記載してください。","任意",null,null,null,null,null,null,null,null,null,null,null,"31.鳥取県"]
[null,{"$error":"#REF!"},"その他添付書類（任意）","・補足資料がある場合はご一緒にご提出ください。（パワーポイントなど10枚程度）","任意","（本項目への入力は不要でございます）",null,null,null,null,null,null,null,null,null,null,"32.島根県"]
[null,null,null,null,null,null,null,null,null,null,null,null,null,null,null,null,"33.岡山県"]
[null,null,null,null,null,null,null,null,null,null,null,null,null,null,null,null,"34.広島県"]
[null,null,null,null,null,null,null,null,null,null,null,null,null,null,null,null,"35.山口県"]
[null,null,null,null,null,null,null,null,null,null,null,null,null,null,null,null,"36.徳島県"]
[null,null,null,null,null,null,null,null,null,null,null,null,null,null,null,null,"37.香川県"]
[null,null,null,null,null,null,null,null,null,null,null,null,null,null,null,null,"38.愛媛県"]
[null,null,null,null,null,null,null,null,null,null,null,null,null,null,null,null,"39.高知県"]
[null,null,null,null,null,null,null,null,null,null,null,null,null,null,null,null,"40.福岡県"]
[null,null,null,null,null,null,null,null,null,null,null,null,null,null,null,null,"41.佐賀県"]
[null,null,null,null,null,null,null,null,null,null,null,null,null,null,null,null,"42.長崎県"]
[null,null,null,null,null,null,null,null,null,null,null,null,null,null,null,null,"43.熊本県"]
[null,null,null,null,null,null,null,null,null,null,null,null,null,null,null,null,"44.大分県"]
[null,null,null,null,null,null,null,null,null,null,null,null,null,null,null,null,"45.宮崎県"]
[null,null,null,null,null,null,null,null,null,null,null,null,null,null,null,null,"46.鹿児島県"]
[null,null,null,null,null,null,null,null,null,null,null,null,null,null,null,null,"47.沖縄県"]